bitfinex/quotes_SOLUSD_20250506
["timestamp","ask_amount","ask_price","bid_price","bid_amount"]
[1746527285164,24.53063431,144.29,144.27,14.80618038]
[1746527285558,17.6,144.29,144.27,14.80618038]
[1746527285867,24.53066164,144.29,144.27,14.80618038]
[1746527286037,24.53066164,144.29,144.26,28.24618038]
[1746527286844,24.53066164,144.29,144.26,13.44]
[1746527293272,14.80618038,144.28,144.26,13.44]
[1746527293465,14.80618038,144.27,144.26,13.44]
[1746527294177,17.6,144.26,144.22,13.44]
[1746527294367,32.40618038,144.25,144.22,13.44]
[1746527295268,6.93288962,144.24,144.22,13.44]
[1746527296579,21.73907,144.24,144.22,13.44]
[1746527296883,14.80618038,144.23,144.19,1.5785]
[1746527297070,32.40618038,144.23,144.18,28.24618038]
[1746527297379,6.93385106,144.22,144.19,14.80618038]
[1746527298179,24.53353906,144.23,144.2,14.80618038]
[1746527302381,24.53353906,144.23,144.18,20.37577253]
[1746527302555,24.53353906,144.23,144.2,14.80618038]
[1746527304880,17.6,144.23,144.2,14.80618038]
[1746527305061,17.6,144.23,144.22,14.80618038]
[1746527305379,6.93257408,144.25,144.22,14.80618038]
[1746527305686,6.93257408,144.25,144.23,14.80618038]
[1746527306174,24.53192846,144.26,144.24,14.80618038]
[1746527306394,17.6,144.26,144.24,14.80618038]
[1746527306872,17.6,144.26,144.25,14.80618038]
[1746527307074,17.6,144.29,144.25,14.80618038]
[1746527307257,17.6,144.29,144.28,14.80618038]
[1746527308285,24.53061719,144.29,144.24,6.93288962]
[1746527308484,24.53061719,144.29,144.27,14.80618038]
[1746527310391,17.6,144.29,144.27,14.80618038]
[1746527310890,24.53054891,144.29,144.27,14.80618038]
[1746527317483,39.33672929,144.29,144.23,13.44]
[1746527317683,14.80618038,144.27,144.23,28.24618038]
[1746527318202,14.80618038,144.25,144.21,14.80618038]
[1746527318491,17.6,144.24,144.21,28.24618038]
[1746527318698,17.6,144.24,144.21,13.44]
[1746527319398,6.93337031,144.23,144.21,13.44]
[1746527320095,21.73955069,144.23,144.21,13.44]
[1746527320699,6.93337031,144.23,144.21,13.44]
[1746527321806,21.73955069,144.23,144.17,260.0078]
[1746527322105,21.73955069,144.23,144.19,14.80618038]
[1746527322474,39.07297646,144.23,144.19,14.80618038]
[1746527322670,14.80618038,144.22,144.19,14.80618038]
[1746527323297,6.93433187,144.21,144.19,14.80618038]
[1746527323498,6.93433187,144.21,144.17,260.0078]
[1746527323701,21.74051225,144.21,144.17,253.4827]
[1746527323998,21.74051225,144.21,144.17,28.24618038]
[1746527327605,17.6,144.2,144.17,13.44]
[1746527327794,32.40618038,144.19,144.17,13.44]
[1746527328106,6.93577472,144.18,144.15,14.80618038]
[1746527332186,24.53577472,144.18,144.15,14.80618038]
[1746527332710,24.53577472,144.18,144.16,14.80618038]
[1746527336230,17.6,144.18,144.17,14.80618038]
[1746527336587,34.93439761,144.23,144.17,14.80618038]
[1746527336796,17.6,144.22,144.19,14.80618038]
[1746527337634,39.34003144,144.22,144.18,14.80618038]
[1746527338594,39.34003144,144.22,144.17,14.80618038]
[1746527339118,6.93481276,144.2,144.17,14.80618038]
[1746527340921,21.74099314,144.2,144.16,28.24618038]
[1746527341606,6.93481276,144.2,144.17,14.80618038]
[1746527344209,6.93481276,144.2,144.16,13.44]
[1746527344210,32.40618038,144.19,144.16,13.44]
[1746527344601,17.6,144.19,144.16,13.44]
[1746527345039,17.6,144.19,144.16,28.24618038]
[1746527345529,24.53573378,144.19,144.16,28.24618038]
[1746527345834,17.6,144.19,144.17,14.80618038]
[1746527347217,24.53540342,144.19,144.16,28.24618038]
[1746527347418,39.3415838,144.19,144.16,13.44]
[1746527348100,39.3415838,144.19,144.15,14.80618038]
[1746527349735,14.80618038,144.18,144.13,15.0852]
[1746527350035,32.40618038,144.18,144.14,14.80618038]
[1746527350526,6.9362558,144.17,144.14,14.80618038]
[1746527351934,6.9362558,144.17,144.15,14.80618038]
[1746527352132,6.9362558,144.17,144.16,14.80618038]
[1746527352330,24.5360152,144.18,144.16,14.80618038]
[1746527354238,24.5360152,144.18,144.15,14.80618038]
[1746527356232,17.6,144.17,144.15,14.80618038]
[1746527356829,17.6,144.17,144.13,29.89138038]
[1746527357031,17.6,144.16,144.13,29.89138038]
[1746527358317,6.93721817,144.15,144.13,29.89138038]
[1746527362946,6.93721817,144.15,144.13,15.0852]
[1746527363138,6.93721817,144.15,144.13,29.89138038]
[1746527363655,24.53721817,144.15,144.13,13.46]
[1746527364440,24.53721817,144.15,144.12,14.80618038]
[1746527365247,39.34339855,144.15,144.11,14.80618038]
[1746527368262,17.6,144.14,144.11,14.80618038]
[1746527368969,6.9381808,144.13,144.11,14.80618038]
[1746527369661,24.5378956,144.14,144.11,14.80618038]
[1746527369854,24.5378956,144.14,144.12,14.80618038]
[1746527379164,24.5378956,144.14,144.09,13.46]
[1746527379465,17.6,144.13,144.1,14.80618038]
[1746527379773,17.6,144.13,144.1,9.51384294]
[1746527381269,6.93866222,144.12,144.1,9.51384294]
[1746527381764,6.93866222,144.12,144.1,14.8645087]
[1746527382566,24.53866222,144.12,144.09,13.46]
[1746527382869,24.53866222,144.12,144.11,14.8645087]
[1746527390072,24.53866222,144.12,144.09,13.46]
[1746527390282,39.40317092,144.12,144.09,13.46]
[1746527391373,17.6,144.11,144.09,13.46]
[1746527391573,17.6,144.1,144.09,13.46]
[1746527392359,24.53962526,144.1,144.09,13.46]
[1746527392557,39.40413396,144.1,144.05,13.46]
[1746527392772,32.4645087,144.09,144.05,28.3245087]
[1746527394285,14.8645087,144.08,144.05,13.46]
[1746527394483,6.94107031,144.07,144.05,13.46]
[1746527394690,24.54107031,144.07,144.05,13.46]
[1746527394860,39.40557901,144.07,144.05,13.46]
[1746527395187,39.40557901,144.07,144.03,14.8645087]
[1746527395391,32.4645087,144.06,144.02,14.8645087]
[1746527396360,6.94203401,144.05,144.02,14.8645087]
[1746527398395,6.94203401,144.05,144.01,252.08]
[1746527398686,6.94203401,144.05,144.02,14.8645087]
[1746527399195,6.94203401,144.05,144.01,13.46]
[1746527399371,6.94203401,144.05,144.02,14.8645087]
[1746527400783,17.6,144.04,144.01,13.46]
[1746527400984,17.6,144.03,144.01,28.3245087]
[1746527401294,17.6,144.03,144.01,13.46]
[1746527402282,17.6,144.03,144.01,28.3245087]
[1746527402484,17.6,144.03,144.02,14.8645087]
[1746527406606,17.6,144.03,144.02,21.80798877]
[1746527406808,6.94031657,144.09,144.02,28.35338877]
[1746527406983,24.53982482,144.1,144.08,14.8645087]
[1746527407184,6.93982482,144.1,144.08,14.8645087]
[1746527407910,6.93982482,144.1,144.06,13.46]
[1746527408090,6.93982482,144.1,144.08,14.8645087]
[1746527408406,6.9391437,144.11,144.09,14.8645087]
[1746527408711,6.9391437,144.11,144.08,14.8645087]
[1746527410297,24.54008025,144.1,144.08,14.8645087]
[1746527413420,24.54008025,144.1,144.07,14.8645087]
[1746527413921,39.40458895,144.1,144.06,13.46]
[1746527414213,39.40458895,144.1,144.06,28.3245087]
[1746527415691,14.8645087,144.08,144.06,13.46]
[1746527416394,32.4645087,144.09,144.06,13.46]
[1746527416998,17.6,144.09,144.06,28.3245087]
[1746527417198,6.94058856,144.08,144.06,13.46]
[1746527417405,6.94058856,144.08,144.05,14.8645087]
[1746527417700,24.54058856,144.08,144.05,14.8645087]
[1746527421620,24.54058856,144.08,144.06,14.8645087]
[1746527422114,24.54058856,144.08,144.05,14.8645087]
[1746527422320,6.94058856,144.08,144.05,14.8645087]
[1746527425195,21.80509726,144.08,144.03,29.8754087]
[1746527425438,14.8645087,144.06,144.03,13.46]
[1746527426515,6.94203401,144.05,144.03,13.46]
[1746527428321,21.80654271,144.05,144.01,14.8645087]
[1746527428703,14.8645087,144.02,143.99,13.46]
[1746527429925,6.94396222,144.01,143.99,28.3245087]
[1746527431003,6.94348007,144.02,143.99,28.3245087]
[1746527432503,14.8645087,144.02,143.99,13.46]
[1746527432812,21.80750668,144.03,143.99,28.3245087]
[1746527433021,39.16500164,144.03,143.99,28.3245087]
[1746527433415,14.8645087,144.02,143.99,28.3245087]
[1746527434236,32.4645087,144.02,143.99,28.3245087]
[1746527434530,6.94396222,144.01,143.99,28.3245087]
[1746527435226,24.54365552,144.02,144.0,14.8645087]
[1746527435422,24.54365552,144.02,143.99,13.46]
[1746527435423,17.6,144.02,143.99,13.46]
[1746527435632,17.6,144.02,144.01,14.8645087]
[1746527435925,17.6,144.07,144.01,16.4313087]
[1746527436133,17.6,144.07,144.05,14.8645087]
[1746527436731,6.94176963,144.06,144.04,14.8645087]
[1746527436913,24.54119372,144.07,144.04,14.8645087]
[1746527437231,24.54119372,144.07,144.05,14.8645087]
[1746527440047,24.48482915,144.07,144.04,14.8645087]
[1746527441439,24.48482915,144.07,144.01,1.5668]
[1746527441650,39.34933785,144.07,144.03,14.8645087]
[1746527441835,24.48482915,144.07,144.04,14.8645087]
[1746527443546,24.48482915,144.07,144.03,14.8645087]
[1746527444824,24.48482915,144.07,144.04,14.8645087]
[1746527446650,17.54363543,144.07,144.04,14.8645087]
[1746527446837,17.54363543,144.07,144.05,14.8645087]
[1746527447035,24.48471191,144.07,144.05,14.8645087]
[1746527447232,24.48471191,144.07,144.04,28.3845087]
[1746527447853,39.34922061,144.07,144.04,13.52]
[1746527448239,24.48471191,144.07,144.04,28.3845087]
[1746527450646,39.34922061,144.07,144.04,13.52]
[1746527450850,14.8645087,144.06,144.04,13.52]
[1746527451352,14.8645087,144.05,144.0,28.3845087]
[1746527451650,14.8645087,144.04,144.0,28.3845087]
[1746527451827,14.8645087,144.03,144.0,13.52]
[1746527452029,21.80847092,144.01,144.0,13.52]
[1746527452541,6.94396222,144.01,144.0,13.52]
[1746527454143,24.48731728,144.02,144.0,28.3845087]
[1746527455150,6.94368185,144.02,144.0,28.3845087]
[1746527455348,6.94368185,144.02,144.0,13.52]
[1746527457425,6.94368185,144.02,144.0,13.46363542]
[1746527460856,21.80819055,144.02,144.0,13.46363542]
[1746527461542,6.94368185,144.02,144.0,13.46363542]
[1746527470058,32.40814413,144.03,144.01,14.8645087]
[1746527470059,17.54363543,144.03,144.01,14.8645087]
[1746527470252,6.94294117,144.04,144.02,14.8645087]
[1746527470761,24.48584785,144.05,144.02,14.8645087]
[1746527472559,17.54363543,144.05,144.03,14.8645087]
[1746527472747,17.54363543,144.05,144.04,14.8645087]
[1746527472936,6.94077295,144.08,144.04,14.8645087]
[1746527473139,6.94077295,144.08,144.05,14.8645087]
[1746527473338,6.94077295,144.08,144.04,14.8645087]
[1746527473557,21.80528165,144.08,144.04,14.8645087]
[1746527473750,6.94077295,144.08,144.06,14.8645087]
[1746527473950,24.48381462,144.09,144.07,14.8645087]
[1746527474150,24.48381462,144.09,144.06,14.8645087]
[1746527474568,24.48381462,144.09,144.07,14.8645087]
[1746527474769,17.54363543,144.09,144.07,14.8645087]
[1746527475144,24.4837423,144.09,144.08,14.8645087]
[1746527475468,24.4837423,144.09,144.05,20.44186138]
[1746527475669,24.4837423,144.09,144.08,14.8645087]
[1746527475973,24.4837423,144.09,144.07,14.8645087]
[1746527478965,24.4837423,144.09,144.08,14.8645087]
[1746527479163,6.94010687,144.09,144.07,14.8645087]
[1746527479367,21.80461557,144.09,144.05,28.3645087]
[1746527479558,6.94010687,144.09,144.05,28.3645087]
[1746527479759,24.29037406,144.09,144.06,14.8645087]
[1746527480953,6.93962526,144.1,144.07,14.8645087]
[1746527481365,6.93962526,144.1,144.08,14.8645087]
[1746527482876,21.80413396,144.1,144.05,13.5]
[1746527483075,21.80413396,144.1,144.06,14.8645087]
[1746527485584,6.93962526,144.1,144.08,14.8645087]
[1746527485976,24.482995,144.11,144.09,14.8645087]
[1746527486172,24.482995,144.11,144.1,14.8645087]
[1746527486372,6.93866222,144.12,144.1,14.8645087]
[1746527488280,6.93866222,144.12,144.09,14.8645087]
[1746527493273,6.93866222,144.12,144.1,14.8645087]
[1746527495983,24.48105494,144.15,144.11,14.8645087]
[1746527496187,6.93694033,144.16,144.13,14.8645087]
[1746527496375,17.54363543,144.18,144.14,14.8645087]
[1746527496624,17.54363543,144.18,144.15,14.8645087]
[1746527496767,6.93481276,144.2,144.17,14.8645087]
[1746527497480,21.79932146,144.2,144.15,13.48]
[1746527497683,21.79932146,144.2,144.16,14.8645087]
[1746527498172,6.93481276,144.2,144.17,14.8645087]
[1746527498673,6.93481276,144.2,144.16,14.8645087]
[1746527499074,6.93481276,144.2,144.15,13.48]
[1746527499075,14.8645087,144.19,144.15,13.48]
[1746527499493,14.8645087,144.18,144.15,13.48]
[1746527499705,14.8645087,144.17,144.15,13.48]
[1746527500080,17.54363543,144.19,144.15,13.48]
[1746527500288,14.8645087,144.17,144.15,13.48]
[1746527500677,17.54363543,144.19,144.15,13.48]
[1746527501002,21.80028342,144.18,144.15,13.48]
[1746527501211,6.93577472,144.18,144.15,28.3445087]
[1746527501511,21.80028342,144.18,144.15,13.48]
[1746527503395,6.93577472,144.18,144.15,28.3445087]
[1746527505102,6.93577472,144.18,144.15,13.48]
[1746527505993,14.8645087,144.17,144.15,13.48]
[1746527506299,14.8645087,144.16,144.12,1.5427]
[1746527506671,14.8645087,144.16,144.12,16.4072087]
[1746527506910,32.40814413,144.17,144.12,16.4072087]
[1746527507496,32.40814413,144.17,144.13,14.8645087]
[1746527507796,6.93673695,144.16,144.13,14.8645087]
[1746527508478,21.80124565,144.16,144.12,1.5427]
[1746527508805,14.8645087,144.14,144.11,13.54]
[1746527509113,14.8645087,144.12,144.11,13.54]
[1746527509280,14.8645087,144.12,144.08,14.8645087]
[1746527509473,14.8645087,144.12,144.07,13.54]
[1746527509676,24.48189295,144.13,144.1,14.8645087]
[1746527510599,24.48189295,144.13,144.08,6.9403576]
[1746527510803,24.48189295,144.13,144.1,14.8645087]
[1746527511098,24.48189295,144.13,144.08,6.9403576]
[1746527511305,24.48189295,144.13,144.07,39.54]
[1746527511306,39.34640165,144.13,144.07,46.48085078]
[1746527511630,39.34640165,144.13,144.09,14.8645087]
[1746527512715,14.8645087,144.12,144.08,14.8645087]
[1746527512907,39.34640165,144.13,144.08,14.8645087]
[1746527513400,24.48189295,144.13,144.09,14.8645087]
[1746527515515,24.48189295,144.13,144.1,14.8645087]
[1746527520725,24.48189295,144.13,144.11,14.8645087]
[1746527521101,24.48189295,144.13,144.1,14.8645087]
[1746527521696,17.54363543,144.13,144.11,14.8645087]
[1746527522710,24.48188854,144.13,144.1,28.4045087]
[1746527523596,17.54363543,144.13,144.1,28.4045087]
[1746527524319,6.93792518,144.14,144.1,28.4045087]
[1746527524925,6.93792518,144.14,144.11,14.8645087]
[1746527526105,6.93792518,144.14,144.1,28.4045087]
[1746527526410,21.80243388,144.14,144.1,28.4045087]
[1746527527521,14.8645087,144.13,144.1,13.54]
[1746527528508,39.14668252,144.14,144.1,13.54]
[1746527530322,14.8645087,144.13,144.1,13.54]
[1746527530525,14.8645087,144.12,144.1,13.54]
[1746527530725,14.8645087,144.11,144.1,13.54]
[1746527531619,6.9391437,144.11,144.1,13.54]
[1746527532934,14.8645087,144.14,144.1,28.4045087]
[1746527533108,14.8645087,144.14,144.1,13.54]
[1746527533424,14.8645087,144.13,144.1,13.54]
[1746527534028,24.48150575,144.14,144.1,28.4045087]
[1746527536532,24.48150575,144.14,144.11,14.8645087]
[1746527537933,17.54363543,144.17,144.13,14.8645087]
[1746527538131,17.54363543,144.17,144.15,14.8645087]
[1746527539128,6.93591822,144.18,144.15,14.8645087]
[1746527540230,21.80042692,144.18,144.14,28.4045087]
[1746527540928,21.80042692,144.18,144.14,13.54]
[1746527541232,21.80042692,144.18,144.14,28.4045087]
[1746527541934,14.8645087,144.17,144.14,13.54]
[1746527542321,6.93673695,144.16,144.14,13.54]
[1746527543037,6.93673695,144.16,144.14,28.4045087]
[1746527544337,39.13991049,144.18,144.14,28.4045087]
[1746527546824,24.27540179,144.18,144.15,14.8645087]
[1746527548246,24.27540179,144.18,144.14,13.54]
[1746527548429,39.13991049,144.18,144.14,28.4045087]
[1746527550055,24.27540179,144.18,144.15,14.8645087]
[1746527552346,39.13991049,144.18,144.14,28.4045087]
[1746527552936,24.27540179,144.18,144.15,14.8645087]
[1746527553648,6.93577472,144.18,144.17,14.8645087]
[1746527553947,24.27521153,144.18,144.16,14.8645087]
[1746527554944,24.27521153,144.18,144.17,14.8645087]
[1746527555142,24.27521153,144.18,144.14,13.54]
[1746527555143,24.27521153,144.18,144.16,14.8645087]
[1746527556547,17.33943681,144.18,144.16,14.8645087]
[1746527557246,17.33943681,144.18,144.14,13.54]
[1746527557437,17.33943681,144.18,144.16,14.8645087]
[1746527558550,24.27184466,144.2,144.17,14.8645087]
[1746527559749,39.13635336,144.2,144.16,14.8645087]
[1746527560350,14.8645087,144.18,144.14,13.54]
[1746527560649,24.27689532,144.17,144.14,13.54]
[1746527561260,24.27689532,144.17,144.14,28.4045087]
[1746527563149,24.27689532,144.17,144.14,13.54]
[1746527563351,24.27689532,144.17,144.14,28.4045087]
[1746527564651,32.40814413,144.16,144.14,13.54]
[1746527564856,32.40814413,144.15,144.1,28.4045087]
[1746527565057,14.8645087,144.13,144.1,13.54]
[1746527565247,17.54363543,144.14,144.1,28.4045087]
[1746527565557,32.40814413,144.14,144.1,28.4045087]
[1746527566569,24.28363282,144.13,144.1,28.4045087]
[1746527573368,6.9381808,144.13,144.1,28.4045087]
[1746527574366,6.9381808,144.13,144.11,14.8645087]
[1746527574590,6.9381808,144.13,144.12,14.8645087]
[1746527574758,24.48156689,144.14,144.12,14.8645087]
[1746527578457,6.93793146,144.14,144.12,14.8645087]
[1746527579478,6.93721817,144.15,144.12,14.8645087]
[1746527580276,21.80172687,144.15,144.1,13.54]
[1746527580455,21.80172687,144.15,144.11,14.8645087]
[1746527581273,6.93721817,144.15,144.12,14.8645087]
[1746527582577,21.80172687,144.15,144.11,14.8645087]
[1746527583591,14.8645087,144.14,144.1,13.54]
[1746527583882,14.8645087,144.14,144.1,28.4045087]
[1746527584074,6.93769945,144.14,144.11,14.8645087]
[1746527585188,6.93769945,144.14,144.1,13.54]
[1746527585487,6.93769945,144.14,144.1,28.4045087]
[1746527587553,39.14645679,144.14,144.1,28.4045087]
[1746527589874,14.8645087,144.12,144.1,13.54]
[1746527590178,14.8645087,144.12,144.07,42.3781087]
[1746527590904,14.8645087,144.12,144.07,27.5136]
[1746527591196,14.8645087,144.12,144.08,14.8645087]
[1746527591769,6.9391437,144.11,144.08,14.8645087]
[1746527592575,39.15151167,144.11,144.07,16.3781087]
[1746527592983,39.15151167,144.11,144.07,1.5136]
[1746527593186,56.6951471,144.11,144.07,16.3781087]
[1746527593899,24.48277913,144.11,144.08,14.8645087]
[1746527594073,17.54363543,144.11,144.09,14.8645087]
[1746527594275,17.54363543,144.11,144.07,1.5136]
[1746527594276,17.54363543,144.11,144.1,14.8645087]
[1746527594597,6.93840332,144.13,144.1,14.8645087]
[1746527597888,6.93840332,144.13,144.11,14.8645087]
[1746527598584,6.93840332,144.13,144.1,14.8645087]
[1746527599987,6.88196206,144.13,144.1,14.8645087]
[1746527601736,17.54363543,144.14,144.1,14.8645087]
[1746527601999,24.48155951,144.14,144.1,14.8645087]
[1746527604098,17.54363543,144.14,144.11,14.8645087]
[1746527604402,17.54363543,144.14,144.1,6.93955814]
[1746527604403,39.34594593,144.14,144.1,14.8645087]
[1746527604582,14.8645087,144.13,144.09,28.4445087]
[1746527605817,21.80306487,144.13,144.09,28.4445087]
[1746527606718,21.80306487,144.13,144.09,13.58]
[1746527606889,17.54363543,144.12,144.09,13.58]
[1746527607091,14.8645087,144.1,144.05,28.4445087]
[1746527607297,14.8645087,144.09,144.05,28.4445087]
[1746527608206,6.94058856,144.08,144.05,28.4445087]
[1746527609587,6.94058856,144.08,144.05,13.58]
[1746527610289,17.34900223,144.11,144.06,14.8645087]
[1746527610290,39.15265463,144.11,144.06,14.8645087]
[1746527610702,14.8645087,144.1,144.06,14.8645087]
[1746527611589,14.8645087,144.09,144.05,28.4445087]
[1746527611788,32.40814413,144.08,144.05,13.58]
[1746527612279,6.94107031,144.07,144.05,13.58]
[1746527616814,6.94107031,144.07,144.05,28.4445087]
[1746527618619,24.4843549,144.08,144.05,28.4445087]
[1746527618789,24.4843549,144.08,144.06,14.8645087]
[1746527618790,17.54363543,144.08,144.06,14.8645087]
[1746527623321,6.94023344,144.09,144.06,14.8645087]
[1746527625222,21.80474214,144.09,144.05,28.4445087]
[1746527625722,14.8645087,144.08,144.05,13.58]
[1746527626429,6.94107031,144.07,144.05,13.58]
[1746527630427,6.94107031,144.07,144.04,14.8645087]
[1746527631619,6.94107031,144.07,144.05,14.8645087]
[1746527631823,17.54363543,144.08,144.06,9.51885087]
[1746527632023,17.54363543,144.08,144.07,9.51885087]
[1746527632533,6.94038796,144.09,144.06,9.51885087]
[1746527633024,16.45923883,144.09,144.03,13.58]
[1746527633236,9.51885087,144.08,144.04,9.51885087]
[1746527633733,14.87700597,144.08,144.04,14.87700597]
[1746527634041,21.81739393,144.09,144.04,14.87700597]
[1746527638334,6.94107031,144.07,144.04,14.87700597]
[1746527641334,6.94107031,144.07,144.05,14.87700597]
[1746527641736,17.54363543,144.08,144.06,14.87700597]
[1746527643936,14.87700597,144.11,144.07,14.87700597]
[1746527643937,24.48299423,144.11,144.07,14.87700597]
[1746527644146,24.48299423,144.11,144.09,14.87700597]
[1746527644614,17.54363543,144.11,144.1,14.87700597]
[1746527645031,14.87700597,144.14,144.1,14.87700597]
[1746527645032,24.48143291,144.14,144.1,14.87700597]
[1746527645247,24.48143291,144.14,144.12,14.87700597]
[1746527645422,22.48143291,144.14,144.11,14.87700597]
[1746527646111,37.35843888,144.14,144.1,14.87700597]
[1746527648247,14.87700597,144.13,144.09,14.87700597]
[1746527650341,6.93866222,144.12,144.09,14.87700597]
[1746527652923,21.81566819,144.12,144.08,13.58]
[1746527653124,21.81566819,144.12,144.08,28.45700597]
[1746527653446,6.93866222,144.12,144.09,14.87700597]
[1746527656437,21.18229765,144.12,144.09,14.87700597]
[1746527657629,21.18229765,144.12,144.1,14.87700597]
[1746527659747,21.18229765,144.12,144.09,9.51438408]
[1746527660722,14.24363543,144.15,144.11,9.51438408]
[1746527660923,14.24363543,144.15,144.13,9.51438408]
[1746527661140,21.18091617,144.15,144.12,9.51438408]
[1746527661758,14.24363543,144.15,144.12,9.51438408]
[1746527662039,6.93696856,144.16,144.12,9.51438408]
[1746527662244,21.1800986,144.17,144.14,9.51438408]
[1746527663952,21.1800986,144.17,144.14,14.85685054]
[1746527664949,36.03694914,144.17,144.13,14.85685054]
[1746527665250,6.93721817,144.15,144.12,14.85685054]
[1746527665853,21.79406871,144.15,144.1,1.5246]
[1746527666030,14.85685054,144.14,144.1,16.38145054]
[1746527666643,21.79406871,144.15,144.11,14.85685054]
[1746527666851,39.13711414,144.15,144.11,14.85685054]
[1746527667055,6.93721817,144.15,144.11,14.85685054]
[1746527667536,6.93721817,144.15,144.12,14.85685054]
[1746527669850,6.93721817,144.15,144.13,14.85685054]
[1746527671548,21.18041794,144.16,144.13,14.85685054]
[1746527676453,36.03726848,144.16,144.12,14.85685054]
[1746527677661,53.37911087,144.16,144.1,1.5246]
[1746527677838,53.37911087,144.16,144.11,14.85685054]
[1746527677839,14.85685054,144.15,144.11,14.85685054]
[1746527678551,14.85685054,144.15,144.1,1.5246]
[1746527678749,14.85685054,144.15,144.11,14.85685054]
[1746527679457,6.93769945,144.14,144.11,14.85685054]
[1746527679940,6.93769945,144.14,144.12,14.85685054]
[1746527680856,6.93721817,144.15,144.12,14.85685054]
[1746527681868,6.93721817,144.15,144.13,14.85685054]
[1746527682069,21.18061707,144.16,144.14,14.85685054]
[1746527682271,21.18061707,144.16,144.13,14.85685054]
[1746527683159,14.85685054,144.15,144.12,13.52]
[1746527683553,36.03746761,144.16,144.12,28.37685054]
[1746527687562,21.18061707,144.16,144.13,14.85685054]
[1746527692266,21.17964971,144.18,144.14,14.85685054]
[1746527692568,14.24363543,144.18,144.17,14.85685054]
[1746527692747,14.24363543,144.21,144.17,28.39685054]
[1746527692946,14.24363543,144.21,144.18,14.85685054]
[1746527693445,21.17817486,144.21,144.18,14.85685054]
[1746527694147,6.93453943,144.21,144.18,14.85685054]
[1746527695344,6.93453943,144.21,144.17,13.54]
[1746527695345,14.85685054,144.19,144.17,13.54]
[1746527695544,6.93577472,144.18,144.17,13.54]
[1746527696270,21.79262526,144.18,144.17,13.54]
[1746527696445,39.13206207,144.18,144.13,28.39685054]
[1746527696647,14.85685054,144.17,144.13,28.39685054]
[1746527697152,14.85685054,144.16,144.13,13.54]
[1746527697357,14.85685054,144.15,144.13,13.54]
[1746527697569,6.93769945,144.14,144.13,13.54]
[1746527699771,6.93721817,144.15,144.13,13.54]
[1746527700351,14.85685054,144.14,144.13,13.54]
[1746527700552,14.85685054,144.14,144.1,14.85685054]
[1746527700858,39.13711414,144.15,144.11,14.85685054]
[1746527702973,14.85685054,144.14,144.1,14.85685054]
[1746527703179,14.85685054,144.14,144.09,39.54]
[1746527703476,24.2802636,144.15,144.09,28.39685054]
[1746527703679,14.85685054,144.14,144.1,14.85685054]
[1746527703885,6.9381808,144.13,144.1,14.85685054]
[1746527705080,6.9381808,144.13,144.11,14.85685054]
[1746527706580,6.9381808,144.13,144.1,14.85685054]
[1746527707868,21.18153187,144.14,144.11,14.85685054]
[1746527708074,21.18153187,144.14,144.12,14.85685054]
[1746527708679,21.18153187,144.14,144.11,14.85685054]
[1746527709077,21.18153187,144.14,144.11,28.39685054]
[1746527710268,6.93789644,144.14,144.11,28.39685054]
[1746527712485,6.93721817,144.15,144.12,14.85685054]
[1746527713485,6.93721817,144.15,144.11,28.39685054]
[1746527715490,21.79406871,144.15,144.11,28.39685054]
[1746527718871,14.85685054,144.14,144.11,13.54]
[1746527719371,14.85685054,144.13,144.11,13.54]
[1746527720987,6.93866222,144.12,144.11,13.54]
[1746527721180,6.93831208,144.13,144.11,13.54]
[1746527728000,6.93831208,144.13,144.11,28.39685054]
[1746527728301,21.18152947,144.14,144.11,28.39685054]
[1746527728484,21.18152947,144.14,144.11,13.54]
[1746527732686,14.85685054,144.13,144.11,13.54]
[1746527733299,14.85685054,144.13,144.08,29.93635054]
[1746527733896,6.93866222,144.12,144.08,29.93635054]
[1746527734089,21.79551276,144.12,144.08,13.5]
[1746527735280,14.85685054,144.1,144.08,13.5]
[1746527735482,14.85685054,144.09,144.03,13.5]
[1746527735702,14.85685054,144.06,144.03,13.5]
[1746527736002,6.94199036,144.06,144.03,13.5]
[1746527736311,6.94199036,144.06,144.03,28.35685054]
[1746527736609,29.10048597,144.07,144.04,14.85685054]
[1746527736610,21.18491238,144.07,144.04,14.85685054]
[1746527737505,14.24363543,144.07,144.05,14.85685054]
[1746527738902,36.04162973,144.07,144.03,28.35685054]
[1746527739903,36.04162973,144.07,144.03,14.85685054]
[1746527741703,36.04162973,144.07,144.03,21.79972952]
[1746527742425,14.24363543,144.07,144.04,14.85685054]
[1746527743391,14.24363543,144.07,144.05,14.85685054]
[1746527744493,14.24363543,144.07,144.03,6.94287898]
[1746527744688,14.24363543,144.07,144.04,14.85685054]